bitfinex-derivatives/quotes_ETHF0:USTF0_20241229
["timestamp","ask_amount","ask_price","bid_price","bid_amount"]
[1735457921691,0.29461,3399.9,3399.8,0.29461]
[1735457924899,0.29462,3399.8,3399.7,4.35022]
[1735457925098,0.29462,3399.8,3399.7,4.0556]
[1735457925295,3.10832405,3400.1,3399.4,0.4283]
[1735457925599,0.29464,3399.5,3399.4,0.4283]
[1735457926100,0.29464,3399.5,3399.3,8.31501711]
[1735457926101,0.29465,3399.4,3399.3,7.84891711]
[1735457926288,1.03215,3399.4,3399.3,7.84891711]
[1735457927103,1.03215,3399.4,3399.3,3.2078]
[1735457928096,0.29468,3399.0,3398.9,3.2078]
[1735457930696,0.29471,3398.7,3398.5,3.50253]
[1735457931596,0.29471,3398.7,3398.6,0.29472]
[1735457933105,0.29472,3398.6,3398.5,3.50253]
[1735457933404,0.29471,3398.7,3398.6,0.29472]
[1735457934201,0.29472,3398.6,3398.5,3.2078]
[1735457936600,0.29472,3398.6,3398.5,3.50253]
[1735457936801,2.79883405,3399.1,3398.5,3.50253]
[1735457937002,0.29471,3398.7,3398.5,3.50253]
[1735457937904,0.29471,3398.7,3398.6,0.29472]
[1735457940301,0.29471,3398.8,3398.6,0.29472]
[1735457941103,0.29471,3398.7,3398.6,0.29472]
[1735457942400,0.427,3399.1,3398.5,3.2078]
[1735457942602,0.29471,3398.7,3398.6,0.29472]
[1735457943807,3.2078,3399.3,3398.5,3.2078]
[1735457944012,0.29469,3399.0,3398.6,0.29472]
[1735457944211,0.29469,3399.0,3398.9,0.29469]
[1735457945206,0.29468,3399.0,3398.9,0.29469]
[1735457946610,0.29468,3399.0,3398.8,0.2947]
[1735457946811,0.29468,3399.0,3398.9,0.4346]
[1735457947112,0.29468,3399.0,3398.9,0.8746]
[1735457953210,5.57963405,3399.4,3398.9,0.8746]
[1735457953416,0.29468,3399.1,3399.0,0.4343]
[1735457954217,0.29468,3399.0,3398.9,0.8746]
[1735457960815,0.29468,3399.0,3398.9,0.44]
[1735457961214,0.29469,3398.9,3398.8,3.2078]
[1735457963625,0.29469,3398.9,3398.1,0.8724]
[1735457963626,0.29475,3398.2,3398.1,4.0802]
[1735457970725,7.75005171,3398.5,3398.1,4.0802]
[1735457970726,4.64138766,3398.5,3398.1,4.0802]
[1735457970933,0.29475,3398.3,3398.2,0.29475]
[1735457971224,4.64138766,3398.5,3398.3,0.29474]
[1735457971433,4.64138766,3398.6,3398.1,4.0802]
[1735457971636,0.29475,3398.2,3398.1,4.0802]
[1735457973429,0.29475,3398.2,3398.1,4.37496]
[1735457974229,0.29475,3398.2,3398.1,9.01607711]
[1735457974833,0.29475,3398.2,3398.1,5.80827711]
[1735457975134,0.29475,3398.2,3398.1,9.01607711]
[1735457977334,0.29475,3398.2,3398.1,8.72131711]
[1735457977637,0.29475,3398.2,3398.1,4.0802]
[1735457979335,0.29475,3398.2,3398.1,4.37496]
[1735457980937,0.29475,3398.2,3398.1,4.0802]
[1735457988543,0.29475,3398.2,3398.1,3.6589]
[1735457994241,4.64138766,3398.5,3398.4,0.29474]
[1735457994642,4.93611766,3398.5,3398.3,0.29474]
[1735457994840,4.64138766,3398.5,3398.4,0.73804]
[1735457995245,0.29472,3398.6,3398.4,0.73804]
[1735457995546,0.29472,3398.6,3398.5,3.2078]
[1735457997446,0.29472,3398.6,3398.5,3.6404]
[1735458005051,0.29472,3398.6,3398.5,3.2078]
[1735458005645,1.15982,3398.6,3398.5,3.2078]
[1735458006145,0.8651,3398.6,3398.2,4.64111711]
[1735458006343,2.66328303,3398.3,3398.2,4.64111711]
[1735458006742,0.29475,3398.2,3398.1,3.2078]
[1735458010853,4.93141359,3398.2,3398.1,3.2078]
[1735458014352,4.93141359,3398.2,3397.8,0.4382]
[1735458014353,4.63666359,3398.2,3397.8,0.4382]
[1735458014552,0.29478,3397.9,3397.8,0.4382]
[1735458014857,0.29478,3397.9,3397.8,3.646]
[1735458026363,0.29478,3397.9,3397.8,8.28711711]
[1735458027568,0.29478,3397.9,3397.8,3.646]
[1735458029761,0.29478,3397.9,3397.8,0.4382]
[1735458029962,0.29478,3397.9,3397.8,3.646]
[1735458033767,0.29478,3397.9,3397.8,0.4382]
[1735458034170,0.29478,3397.9,3397.8,3.646]
[1735458035577,4.63666359,3398.1,3397.8,3.646]
[1735458035774,3.23676359,3398.1,3398.0,1.33622929]
[1735458036974,0.29476,3398.2,3398.0,6.84822401]
[1735458037174,0.29476,3398.2,3398.1,1.33621929]
[1735458038281,0.29476,3398.2,3398.1,5.97056304]
[1735458039080,1.04145929,3398.7,3398.1,5.67580304]
[1735458039273,1.04145929,3398.7,3398.2,0.4257]
[1735458039473,1.04145929,3398.7,3398.3,0.4519]
[1735458039672,0.29474,3398.4,3398.3,0.4519]
[1735458050087,0.29474,3398.4,3398.3,3.6597]
[1735458050489,0.29474,3398.4,3398.3,3.95445]
[1735458051586,1.04145929,3398.7,3398.3,3.6597]
[1735458051784,0.29473,3398.5,3398.4,0.29473]
[1735458052090,0.29473,3398.5,3398.3,3.95444]
[1735458052293,0.29473,3398.5,3398.3,8.58878375]
[1735458053487,0.4525,3398.9,3398.3,9.33550304]
[1735458053692,0.29471,3398.8,3398.6,0.29471]
[1735458054196,0.29471,3398.8,3398.4,0.29474]
[1735458054394,0.29471,3398.8,3398.6,0.29471]
[1735458054692,0.29471,3398.8,3398.7,0.4431]
[1735458054883,5.79653681,3399.1,3398.7,4.0725]
[1735458055091,5.79653681,3399.1,3399.0,1.33613929]
[1735458055995,8.75249325,3399.5,3399.0,1.33613929]
[1735458055996,1.80240929,3399.5,3399.3,0.29465]
[1735458056195,1.80240929,3399.5,3399.4,0.4261]
[1735458059200,0.29465,3399.4,3399.3,3.2078]
[1735458063704,0.29466,3399.3,3399.2,0.436]
[1735458063904,1.33611929,3399.3,3399.2,3.6438]
[1735458064609,0.29461,3399.9,3399.6,0.29463]
[1735458064903,5.79653681,3400.0,3399.8,1.04145929]
[1735458065207,5.79653681,3400.0,3399.9,0.74101]
[1735458066605,3.2078,3400.4,3400.3,0.29457]
[1735458067005,3.2078,3400.4,3399.9,0.4464]
[1735458067205,3.50237,3400.4,3400.1,0.29459]
[1735458067513,3.2078,3400.4,3400.1,0.29459]
[1735458067810,3.2078,3400.4,3400.2,0.4512]
[1735458067811,0.29458,3400.3,3400.2,0.4512]
[1735458068195,3.2078,3400.4,3399.9,0.4464]
[1735458068408,0.29459,3400.1,3399.9,0.741]
[1735458068608,0.74198,3400.3,3399.9,0.4464]
[1735458068810,0.29458,3400.3,3400.1,0.29458]
[1735458069100,3.50237,3400.4,3400.0,0.2946]
[1735458069307,3.50237,3400.4,3399.9,0.4464]
[1735458069512,3.50237,3400.4,3400.2,0.29458]
[1735458069804,3.2078,3400.4,3400.3,0.4416]
[1735458069998,3.2078,3400.4,3400.3,1.18017]
[1735458071007,3.50236,3400.4,3400.3,0.8856]
[1735458074914,0.29456,3400.4,3400.3,0.8856]
[1735458076215,3.2078,3400.5,3399.9,0.4464]
[1735458076216,0.2946,3400.1,3399.9,0.4464]
[1735458076415,0.2946,3400.1,3399.9,0.8992]
[1735458076910,0.2946,3400.0,3399.9,0.8992]
[1735458082918,0.2946,3400.0,3399.9,1.19381]
[1735458083412,0.29459,3400.2,3400.0,0.29459]
[1735458083614,0.29459,3400.2,3400.1,3.2078]
[1735458084216,3.53394923,3400.6,3400.1,3.50238]
[1735458084217,0.29458,3400.3,3400.1,3.50238]
[1735458084417,0.29458,3400.3,3400.2,0.29458]
[1735458084618,0.29456,3400.4,3400.2,0.29458]
[1735458084813,0.29456,3400.4,3400.3,0.4561]
[1735458086816,1.33460092,3400.4,3400.3,0.4561]
[1735458089019,0.29456,3400.4,3400.3,0.4561]
[1735458089221,3.2078,3400.9,3400.3,0.4561]
[1735458089523,0.29455,3400.6,3400.4,1.15366]
[1735458089719,1.04004092,3400.7,3400.4,0.8591]
[1735458089927,0.29455,3400.5,3400.4,0.8591]
[1735458091318,0.29453,3400.8,3400.6,0.29454]
[1735458091828,4.54237092,3400.9,3400.4,0.8591]
[1735458092124,4.54237092,3400.9,3400.6,0.29454]
[1735458092317,4.24784092,3400.9,3400.6,0.29454]
[1735458092618,0.29453,3400.8,3400.6,0.29454]
[1735458093218,4.24784092,3400.9,3400.4,1.89914092]
[1735458093423,0.29455,3400.7,3400.5,0.29455]
[1735458095822,0.29453,3400.8,3400.6,0.29454]
[1735458096026,3.2078,3400.9,3400.7,0.29453]
[1735458096027,3.50232,3400.9,3400.7,0.29453]
[1735458096220,3.50232,3400.9,3400.8,0.8779]
[1735458097015,3.50232,3400.9,3400.8,1.17243]
[1735458097222,0.8882,3401.2,3400.9,0.29452]
[1735458097521,0.29451,3401.1,3400.9,0.75352]
[1735458097721,0.29451,3401.0,3400.9,0.459]
[1735458098021,0.2945,3401.2,3400.9,0.459]
[1735458098419,0.2945,3401.2,3401.1,0.2945]
[1735458098618,4.1078,3401.6,3401.1,0.2945]
[1735458098818,0.29449,3401.3,3401.1,0.2945]
[1735458099018,0.29449,3401.3,3401.2,0.4345]
[1735458100127,0.29449,3401.3,3401.2,0.72899]
[1735458100428,0.29448,3401.4,3401.2,0.72899]
[1735458100725,0.29448,3401.4,3401.3,0.4554]
[1735458101529,0.29447,3401.5,3401.3,0.4554]
[1735458102623,0.29447,3401.5,3401.3,0.74989]
[1735458103527,3.2078,3401.6,3401.3,0.4554]
[1735458103729,0.29448,3401.4,3401.3,0.4554]
[1735458108425,0.29448,3401.4,3401.3,0.74989]
[1735458108730,0.29448,3401.4,3401.3,0.4554]
[1735458109834,0.29451,3401.1,3400.9,0.75351]
[1735458110228,0.29451,3401.1,3401.0,0.4239]
[1735458110528,0.29451,3401.1,3401.0,0.71841]
[1735458116533,0.29451,3401.1,3401.0,1.75784969]
[1735458117936,0.8539,3401.4,3400.9,0.459]
[1735458117937,0.29451,3401.0,3400.9,0.75351]
[1735458118137,0.29451,3401.0,3400.9,1.49843969]
[1735458118837,0.29451,3401.0,3400.9,4.70623969]
[1735458119231,0.29451,3401.0,3400.9,5.00075969]
[1735458120827,0.29451,3401.0,3400.9,4.54175969]
[1735458121026,1.03943969,3401.0,3400.6,0.73764]
[1735458121233,0.29454,3400.8,3400.6,0.73764]
[1735458121635,0.29454,3400.8,3400.7,1.03943969]
[1735458121943,1.18543,3400.9,3400.8,0.29453]
[1735458122232,0.29451,3401.1,3401.0,0.29451]
[1735458122431,0.29451,3401.1,3401.0,1.33394969]
[1735458124145,0.29451,3401.1,3401.0,1.03943969]
[1735458124442,0.29451,3401.1,3401.0,0.29451]
[1735458124631,0.73569,3401.3,3401.2,0.29449]
[1735458125439,0.29449,3401.3,3401.2,0.29449]
[1735458126540,0.8909,3401.4,3401.0,0.439]
[1735458126739,0.29449,3401.3,3401.2,0.29449]
[1735458126940,0.29449,3401.3,3401.0,0.439]
[1735458126941,0.2945,3401.2,3401.1,0.2945]
[1735458129443,0.29449,3401.3,3401.2,0.29449]
[1735458135250,0.8909,3401.4,3401.0,0.439]
[1735458135444,1.18538,3401.4,3401.3,0.29449]
[1735458138954,9.00433681,3401.7,3401.5,0.29447]
[1735458139257,9.29879681,3401.7,3401.5,0.29447]
[1735458139455,0.29446,3401.6,3401.5,0.29447]
[1735458139658,9.29879681,3401.7,3401.5,0.29447]
[1735458139854,9.00433681,3401.7,3401.5,0.29447]
[1735458140051,9.29878681,3401.7,3401.6,0.4607]
[1735458143758,4.37653681,3401.7,3401.6,0.75516]
[1735458145557,6.95008396,3402.1,3402.0,0.29442]
[1735458145866,0.29437,3402.6,3402.5,0.29437]
[1735458146257,0.29438,3402.6,3402.4,0.29438]
[1735458146459,0.4284,3402.7,3402.0,5.5725785]
[1735458146764,3.2078,3402.6,3402.0,3.2078]
[1735458146958,0.2944,3402.4,3402.3,0.29439]
[1735458147652,0.2944,3402.3,3402.2,4.9101107]
[1735458147855,0.2944,3402.3,3402.2,4.6157107]
[1735458148054,0.4383,3402.5,3402.0,7.8235107]
[1735458148369,0.4231,3402.8,3402.4,3.2078]
[1735458148859,0.4463,3402.7,3402.5,0.4591]
[1735458149069,0.29437,3402.6,3402.5,0.4591]
[1735458149269,0.29438,3402.5,3402.4,3.2078]
[1735458149762,0.9022,3402.7,3402.4,3.2078]
[1735458150066,0.9022,3402.7,3402.5,0.29438]
[1735458150067,0.4463,3402.7,3402.5,0.29438]
[1735458150371,0.4463,3402.7,3402.6,0.29437]
[1735458150663,0.4231,3402.8,3402.6,0.29437]
[1735458150861,0.4231,3402.8,3402.7,0.428]
[1735458151263,0.4231,3402.8,3402.7,0.72236]
[1735458151466,0.71746,3402.8,3402.7,0.428]
[1735458151861,0.4231,3402.8,3402.7,0.428]
[1735458152163,0.71746,3402.8,3402.7,0.428]
[1735458152360,3.2078,3403.0,3402.9,0.29435]
[1735458152565,3.50214,3403.0,3402.7,0.428]
[1735458153055,3.2078,3403.5,3402.8,3.2078]
[1735458153261,0.29431,3403.4,3403.1,0.29432]
[1735458153461,3.6684,3403.5,3403.2,0.4642]
[1735458153764,3.6684,3403.5,3403.2,0.9042]
[1735458154354,3.6684,3403.5,3403.2,1.19852]
[1735458154863,3.6684,3403.5,3403.2,0.9042]
[1735458154864,0.7549,3403.5,3403.2,0.9042]
[1735458155063,0.4606,3403.5,3403.2,1.19852]
[1735458155366,0.4606,3403.5,3403.3,0.29431]
[1735458157161,0.29431,3403.3,3402.8,3.6447]
[1735458157467,0.29435,3402.9,3402.6,0.75057]
[1735458157970,2.3647785,3403.3,3402.6,0.4562]
[1735458158168,0.29435,3402.9,3402.6,0.75057]
[1735458158570,0.29436,3402.8,3402.6,0.75057]
[1735458159266,0.29436,3402.7,3402.6,0.4562]
[1735458159465,0.29438,3402.5,3402.4,3.96289]
[1735458160167,0.29438,3402.5,3402.4,3.6685]
[1735458160475,0.29438,3402.5,3402.4,3.2078]
[1735458160969,0.29442,3402.0,3401.9,3.2078]
[1735458162169,1.3566,3402.4,3401.9,3.2078]
[1735458162371,0.29442,3402.1,3402.0,0.29442]
[1735458162564,3.2078,3403.4,3401.9,10.5725785]
[1735458162764,3.2078,3403.4,3402.9,0.29434]
[1735458163071,0.29432,3403.2,3402.9,0.29434]
[1735458163463,0.4392,3403.1,3402.9,0.29434]
[1735458163663,0.4392,3403.1,3402.8,0.9036]
[1735458163965,0.4392,3403.1,3403.0,0.29434]
[1735458164165,0.4392,3403.1,3402.8,0.9036]
[1735458164468,0.4392,3403.1,3403.0,0.29434]
[1735458165763,0.4392,3403.1,3402.8,0.9036]
[1735458165961,0.4392,3403.1,3402.9,0.29434]
[1735458166668,0.4392,3403.1,3403.0,0.29434]
[1735458167170,0.73353,3403.1,3402.9,0.29434]
[1735458167370,0.4392,3403.1,3402.8,0.9036]
[1735458167671,0.29435,3402.9,3402.8,0.9036]
[1735458168666,0.29434,3403.0,3402.8,1.19795]
[1735458168869,0.4392,3403.1,3402.8,1.19795]
[1735458169170,0.29434,3403.0,3402.8,1.19795]
[1735458169568,0.29434,3403.0,3402.8,0.9036]
[1735458170471,0.29435,3402.9,3402.8,0.9036]
[1735458171462,0.29434,3403.0,3402.8,1.19796]
[1735458173168,0.29434,3403.0,3402.8,4.40576]
[1735458173866,0.4392,3403.1,3402.8,4.40576]
[1735458174062,0.73354,3403.1,3402.9,0.29434]
[1735458175173,0.29434,3403.0,3402.8,4.40575]
[1735458177568,0.29434,3403.0,3402.9,0.29435]
[1735458177877,0.29434,3403.0,3402.8,4.40575]
[1735458180077,0.29435,3402.9,3402.8,4.40575]
[1735458180678,0.72075,3402.9,3402.8,4.40575]
[1735458181482,0.72075,3402.9,3402.8,3.6522]
[1735458181983,0.72075,3402.9,3402.8,3.2078]
[1735458183485,0.72075,3402.9,3402.8,3.50216]
[1735458184278,0.72075,3402.9,3402.8,3.2078]
[1735458188184,0.4264,3402.9,3402.6,0.29437]
[1735458188373,0.29436,3402.7,3402.6,0.29437]
[1735458188976,0.4264,3402.9,3402.5,2.3647785]
[1735458189183,3.2078,3403.2,3402.8,3.2078]
[1735458189485,3.50209,3403.6,3403.4,0.2943]
[1735458189786,3.2078,3403.6,3403.4,0.2943]
[1735458189981,3.2078,3403.6,3403.5,0.2943]
[1735458190480,0.29425,3404.1,3403.9,0.29426]
[1735458190881,0.29425,3404.1,3403.5,1.3387]
[1735458191085,0.29425,3404.0,3403.8,0.29427]
[1735458191391,0.29425,3404.0,3403.5,1.3387]
[1735458191690,0.29425,3404.0,3403.7,0.29427]
[1735458192488,0.29425,3404.0,3403.8,0.29427]
[1735458192679,0.29425,3404.0,3403.5,1.3387]
[1735458192885,0.29425,3404.0,3403.7,0.29428]
[1735458193087,0.4417,3404.1,3403.7,0.29428]
[1735458193289,0.29425,3404.0,3403.7,0.29428]
[1735458194695,0.29426,3403.9,3403.7,0.29428]
[1735458195194,0.29427,3403.8,3403.5,1.3387]
[1735458195381,0.29427,3403.8,3403.6,0.29428]
[1735458195587,0.29429,3403.6,3403.4,3.2078]
[1735458195791,0.7349,3403.5,3403.4,3.2078]
[1735458195990,1.1734,3403.5,3403.4,3.2078]
[1735458196485,0.8791,3403.5,3403.4,3.2078]
[1735458196686,0.8791,3403.5,3403.4,3.5021]
[1735458197995,0.8791,3403.5,3403.4,0.2943]
[1735458198490,0.29429,3403.6,3403.4,0.2943]
[1735458200497,0.29429,3403.6,3403.5,0.2943]
[1735458201293,0.8796,3404.0,3403.2,3.6664]
[1735458201792,0.2943,3403.5,3403.4,0.2943]
[1735458202991,0.8796,3404.0,3403.4,0.2943]
[1735458203196,0.29428,3403.7,3403.4,0.2943]
[1735458203591,0.29428,3403.7,3403.2,3.6664]
[1735458203898,0.29428,3403.7,3403.6,0.29429]
[1735458204704,0.4409,3404.0,3403.6,0.29429]
[1735458204999,0.29428,3403.8,3403.6,0.29429]
[1735458205191,0.29428,3403.8,3403.7,0.4486]
[1735458205592,0.29428,3403.8,3403.7,0.74288]
[1735458205793,0.29427,3403.9,3403.7,0.74288]
[1735458207599,0.29427,3403.9,3403.7,0.74287]
[1735458209098,0.29427,3403.9,3403.8,0.29427]
[1735458209400,0.4409,3404.0,3403.7,0.4486]
[1735458209697,0.4409,3404.0,3403.9,0.29426]
[1735458212404,2.3647785,3404.4,3404.3,0.29423]
[1735458213701,3.2078,3404.5,3404.4,0.29422]
[1735458214199,3.50201,3404.5,3404.4,0.29422]
[1735458214601,3.50201,3404.5,3404.3,0.29422]
[1735458214809,3.50201,3404.5,3404.4,0.4513]
[1735458215505,0.29421,3404.5,3404.4,0.4513]
[1735458219696,0.904,3404.6,3404.1,3.2078]
[1735458219901,0.29423,3404.2,3404.1,3.2078]
[1735458228012,0.29425,3404.1,3403.9,0.29426]
[1735458228319,0.29425,3404.1,3404.0,3.2078]
[1735458228612,0.29425,3404.1,3403.9,0.29426]
[1735458229412,3.2078,3404.5,3403.9,0.29426]
[1735458229707,3.2078,3404.5,3403.7,0.4526]
[1735458229905,0.29427,3403.8,3403.7,0.4526]
[1735458231912,0.29427,3403.8,3403.7,3.6604]
[1735458233416,0.4386,3404.1,3403.7,3.6604]
[1735458233614,0.4386,3404.1,3404.0,0.29425]
[1735458233615,0.29424,3404.1,3404.0,0.29425]
[1735458234718,0.29424,3404.2,3404.1,0.29424]
[1735458235211,0.29424,3404.2,3403.9,0.4553]
[1735458235212,0.4254,3404.4,3403.9,0.4553]
[1735458235420,0.29425,3404.1,3404.0,0.29424]
[1735458236321,0.29425,3404.1,3404.0,0.29425]
[1735458238218,0.4254,3404.4,3403.9,0.4553]
[1735458238423,0.4502,3404.0,3403.9,0.74956]
[1735458240618,0.74445,3404.0,3403.9,0.74956]
[1735458241019,0.4502,3404.0,3403.9,0.74956]
[1735458241321,0.74445,3404.0,3403.9,0.74956]
[1735458242318,0.74445,3404.0,3403.9,0.4553]
[1735458242617,0.29426,3403.9,3403.8,3.50207]
[1735458243319,0.4522,3404.1,3403.8,3.2078]
[1735458243525,0.29426,3404.0,3403.9,0.29425]
[1735458243925,0.4565,3404.3,3403.8,3.2078]
[1735458244121,0.29425,3404.1,3404.0,0.29424]
[1735458244319,0.29425,3404.1,3404.0,0.74714]
[1735458244520,0.8776,3404.4,3404.0,0.4529]
[1735458244720,0.29424,3404.3,3404.2,0.29423]
[1735458244921,0.8776,3404.4,3404.0,0.4529]
[1735458245122,0.8776,3404.4,3403.9,0.29425]
[1735458245123,0.29424,3404.1,3403.9,0.29425]
[1735458245320,0.29425,3404.0,3403.9,0.29425]
[1735458247624,0.29425,3404.0,3403.8,3.2078]
[1735458247625,0.8776,3404.4,3403.8,3.2078]
[1735458247817,0.29425,3404.1,3404.0,0.29425]
[1735458249927,0.29423,3404.3,3404.1,0.29424]
[1735458250124,0.29423,3404.2,3404.1,0.29424]
[1735458252021,0.29423,3404.2,3404.0,0.29425]
[1735458252830,9.26677862,3405.3,3404.0,3.1003985]
[1735458253032,8.40259129,3405.1,3404.8,0.29418]
[1735458253434,8.40259129,3405.1,3404.8,0.73808]
[1735458253631,8.40259129,3405.1,3404.8,1.17878]
[1735458254127,8.10843129,3405.1,3404.8,1.17878]
[1735458254625,3.2078,3405.5,3404.8,1.17878]
[1735458254626,3.94863,3405.5,3404.8,0.8846]
[1735458254820,3.94863,3405.5,3405.3,0.29414]
[1735458255224,3.94863,3405.5,3405.4,0.4596]
[1735458261423,3.94863,3405.5,3404.8,0.8846]
[1735458261424,3.6545,3405.5,3404.8,0.8846]
[1735458261630,0.29415,3405.2,3405.0,0.29416]
[1735458263436,0.29415,3405.3,3405.0,0.29416]
[1735458264238,0.29415,3405.2,3405.0,0.29416]
[1735458264738,0.29415,3405.2,3404.9,3.6605]
[1735458264739,0.29416,3405.1,3404.9,3.95467]
[1735458266638,0.4467,3405.5,3404.9,3.6605]
[1735458266842,0.29417,3405.0,3404.9,3.2078]
[1735458271738,1.5895,3405.6,3404.9,3.2078]
[1735458271739,3.2078,3405.7,3404.9,3.2078]
[1735458272046,0.29414,3405.3,3405.1,0.29415]
[1735458272242,0.29416,3405.1,3405.0,0.4403]
[1735458272841,0.29415,3405.2,3405.0,0.73446]
[1735458273145,0.455,3405.4,3405.0,0.73446]
[1735458273346,0.29416,3405.2,3405.1,0.4519]
[1735458275252,0.29416,3405.1,3405.0,0.4403]
[1735458275545,0.74566,3405.1,3405.0,0.4403]
[1735458276548,0.29416,3405.1,3405.0,0.4403]
[1735458278554,3.2078,3405.7,3405.0,0.4403]
[1735458278848,0.29413,3405.5,3405.0,0.8605]
[1735458279054,1.16982,3405.6,3405.4,0.29413]
[1735458279250,0.4514,3405.5,3405.4,0.29413]
[1735458283257,0.4514,3405.5,3405.0,0.8605]
[1735458283554,0.74553,3405.5,3405.3,0.29413]
[1735458285365,3.2078,3405.7,3405.0,0.8605]
[1735458285561,0.29412,3405.6,3405.4,0.29413]
[1735458285767,3.50191,3405.7,3405.5,0.9041]
[1735458286466,3.2078,3405.7,3405.5,0.9041]
[1735458286669,0.29411,3405.6,3405.5,1.3651]
[1735458289268,4.24462846,3405.7,3405.1,1.03682846]
[1735458289477,0.29415,3405.2,3405.0,1.3634]
[1735458289667,0.29416,3405.1,3405.0,0.9177]
[1735458290673,0.29417,3405.0,3404.9,3.2078]
[1735458290872,1.76959846,3405.0,3404.9,3.2078]
[1735458292472,0.73277,3405.0,3404.9,3.2078]
[1735458300772,0.4386,3405.0,3404.4,7.8235107]
[1735458300971,0.29421,3404.5,3404.4,7.8235107]
[1735458301175,0.29421,3404.6,3404.4,7.8235107]
[1735458301378,0.29421,3404.6,3404.4,3.2078]
[1735458301580,0.29421,3404.6,3404.4,3.50201]
[1735458302078,0.4349,3404.9,3404.4,3.2078]
[1735458302274,0.4349,3404.9,3404.8,3.2078]
[1735458302275,0.72908,3404.9,3404.8,3.2078]
[1735458303681,0.29418,3404.9,3404.8,3.2078]
[1735458305372,0.29417,3405.0,3404.8,3.50198]
[1735458305580,0.29416,3405.1,3404.8,3.6584]
[1735458305782,0.29417,3405.0,3404.8,3.6584]
[1735458306684,0.29417,3404.9,3404.8,3.6584]
[1735458306875,0.29417,3404.9,3404.8,3.2078]
[1735458309880,0.8784,3405.2,3404.8,3.2078]
[1735458310080,0.29417,3405.0,3404.8,3.50198]
[1735458310482,10.15788396,3405.7,3405.2,0.29414]
[1735458310782,0.29413,3405.5,3405.3,1.17364]
[1735458313587,3.2078,3405.7,3405.3,0.8795]
[1735458313989,0.29413,3405.5,3405.3,1.17364]
[1735458314192,3.2078,3405.7,3405.3,0.8795]
[1735458314382,0.29412,3405.6,3405.4,0.73703]
[1735458314582,0.29412,3405.5,3405.4,0.4429]
[1735458315794,3.2078,3405.7,3405.4,0.4429]
[1735458316094,3.2078,3405.7,3405.6,0.29411]
[1735458316990,0.2941,3405.8,3405.6,0.29411]
[1735458317489,0.2941,3405.8,3405.7,0.4505]
[1735458318089,0.9042,3406.2,3405.7,3.6583]
[1735458318393,0.29409,3406.0,3405.8,0.2941]
[1735458318586,0.29409,3406.0,3405.9,0.4508]
[1735458319395,0.29408,3406.1,3405.9,0.4508]
[1735458319588,0.29408,3406.1,3406.0,0.4345]
[1735458319789,0.456,3406.2,3405.9,0.4508]
[1735458319987,0.29408,3406.0,3405.9,0.4508]
[1735458325692,0.2941,3405.8,3405.7,3.6583]
[1735458325892,0.2941,3405.8,3405.7,3.9524]
[1735458326090,0.2941,3405.8,3405.7,3.6583]
[1735458326294,0.2941,3405.8,3405.7,3.2078]
[1735458326598,0.7522,3405.8,3405.7,3.2078]
[1735458326895,0.2941,3405.8,3405.7,3.2078]
[1735458327086,0.2941,3405.8,3405.7,3.5019]
[1735458327292,0.29409,3405.9,3405.7,3.5019]
[1735458327593,0.29409,3405.9,3405.8,0.882]
[1735458330900,0.29409,3405.9,3405.8,0.4332]
[1735458345406,0.456,3406.2,3405.8,0.4332]
[1735458345407,0.29408,3406.0,3405.8,0.8904]
[1735458345608,0.29408,3406.0,3405.8,1.18449]
[1735458347201,0.456,3406.2,3405.8,0.8904]
[1735458347407,0.29407,3406.1,3406.0,0.29407]
[1735458348705,0.29407,3406.1,3406.0,1.33079412]
[1735458352308,3.2078,3406.5,3405.8,1.92712412]
[1735458352512,0.29407,3406.1,3406.0,0.29408]
[1735458353009,1.03672412,3406.4,3405.9,0.29408]
[1735458353204,0.29408,3406.1,3405.9,0.29408]
[1735458353405,1.03672412,3406.4,3405.9,0.29408]
[1735458353609,0.29408,3406.0,3405.9,0.29408]
[1735458355903,0.29407,3406.1,3406.0,0.29407]
[1735458357613,3.2078,3406.5,3406.1,0.29407]
[1735458357614,0.29407,3406.2,3406.1,0.29407]
[1735458357911,0.29407,3406.2,3406.1,0.4283]
[1735458361612,0.29407,3406.1,3405.9,0.29408]
[1735458361918,0.29409,3405.9,3405.8,8.7139107]
[1735458363309,0.29409,3405.9,3405.8,3.641]
[1735458363715,1.14679,3406.0,3405.9,0.29409]
[1735458364012,0.29409,3405.9,3405.8,3.93509]
[1735458364420,0.4492,3406.4,3405.8,4.67772412]
[1735458364610,0.29408,3406.1,3406.0,0.29408]
[1735458365415,0.29408,3406.0,3405.9,0.29408]
[1735458365617,0.29409,3405.9,3405.8,8.5508007]
[1735458366918,0.29409,3405.9,3405.8,3.93509]
[1735458368014,0.29409,3405.9,3405.8,8.5508007]
[1735458369020,0.29409,3405.9,3405.8,5.3430007]
[1735458369220,0.29409,3405.9,3405.8,8.5508007]
[1735458369421,0.29408,3406.0,3405.9,0.29408]
[1735458370019,1.3142,3406.4,3405.9,1.03672412]
[1735458370322,1.3142,3406.4,3406.3,0.29405]
[1735458370323,0.4367,3406.4,3406.3,0.29405]
[1735458370521,0.29403,3406.6,3406.5,0.29404]
[1735458371621,0.29403,3406.7,3406.6,0.29403]
[1735458371821,0.29403,3406.6,3406.5,0.4593]
[1735458372229,0.4225,3406.7,3406.5,0.4593]
[1735458372524,0.71652,3406.7,3406.5,0.75333]
[1735458372728,0.29403,3406.6,3406.5,0.75333]
[1735458373127,1.92452412,3406.9,3406.5,0.4593]